fUSD/lending_fUSD_20240520
["ID","MTS","AMOUNT","RATE_DAILY","PERIOD"]
[327559041,1716228647029,-151.0,0.0002145,2]
[327559042,1716228647038,-151.18543486,0.00021463,2]
[327559043,1716228647047,-608.30433365,0.00021471,2]
[327559044,1716228647056,-168.24161348,0.00021484,2]
[327559045,1716228647066,-150.0,0.0002149,2]
[327559046,1716228647076,-155.16654335,0.00021492,2]
[327559047,1716228647085,-233.020637,0.00021494,2]
[327559048,1716228647095,-219.225952,0.00021494,2]
[327559049,1716228647104,-320.811415,0.00021494,2]
[327559050,1716228647113,-219.225952,0.00021494,2]
[327559051,1716228647122,-320.811415,0.00021494,2]
[327559052,1716228647132,-151.18543486,0.00021496,2]
[327559053,1716228647141,-3126.38605874,0.00021498,7]
[327559054,1716228647151,-155.38283062,0.00021498,2]
[327559055,1716228647165,-788.18220101,0.00021498,2]
[327559056,1716228647175,-195.76544594,0.00021498,2]
[327559057,1716228647184,-327.24416632,0.00021498,2]
[327559058,1716228647195,-782.13638794,0.00021498,2]
[327559060,1716228647204,-523.16611257,0.00021498,2]
[327559062,1716228647214,-1000.0,0.00021498,2]
[327559063,1716228647226,-453.62819363,0.00021498,2]
[327559065,1716228647241,-306.15892917,0.00021498,2]
[327559067,1716228647251,-155.72821225,0.00021498,2]
[327559069,1716228647260,-217.39565287,0.00021498,2]
[327559071,1716228647270,-2284.43823994,0.00021498,2]
[327559073,1716228647279,-290.115536,0.00021498,2]
[327559075,1716228647288,-290.115536,0.00021498,2]
[327559077,1716228647298,-220.323989,0.00021498,2]
[327559079,1716228647308,-220.323989,0.00021498,2]
[327559081,1716228647318,-151.0,0.00021498,2]
[327559083,1716228647327,-262.345368,0.00021498,2]
[327559085,1716228647336,-262.345368,0.00021498,2]
[327559087,1716228647345,-284.09086,0.00021498,2]
[327559089,1716228647354,-284.09086,0.00021498,2]
[327559091,1716228647363,-177.5004176,0.00021499,2]
[327559093,1716228647373,-155.0,0.00021499,2]
[327559095,1716228647381,-3131.05809858,0.00021499,2]
[327559097,1716228647391,-506055.84725255,0.000215,5]
[327559112,1716228647914,-1116.0,0.00010984,2]
[327559113,1716228647926,-363.66271003,0.00010984,2]
[327559114,1716228647935,-396.34768038,0.00010984,2]
[327559115,1716228647947,-952.02388862,0.00010984,2]
[327559116,1716228647961,-131.29114103,0.00010984,2]
[327559117,1716228647971,-703.99176485,0.00010984,2]
[327559118,1716228647982,-775.67094518,0.00010984,2]
[327559119,1716228647991,-1479.66271003,0.00010984,2]
[327559120,1716228648000,-875.1043377,0.00010984,2]
[327559121,1716228648011,-604.55837233,0.00010984,2]
[327559122,1716228648021,-651.55735865,0.00010984,2]
[327559123,1716228648033,-828.10535138,0.00010984,2]
[327559124,1716228648043,-1479.66271003,0.00010984,2]
[327559125,1716228648052,-86.07167859,0.00010984,2]
[327559126,1716228648063,-1025.24517414,0.00010984,2]
[327559127,1716228649033,-368.3458573,0.00010984,2]
[327559128,1716228649043,-1479.66271003,0.00010984,2]
[327559129,1716228649053,-1479.66271003,0.00010984,2]
[327559130,1716228649062,-1479.66271003,0.00010984,2]
[327559131,1716228649071,-1479.66271003,0.00010984,2]
[327559132,1716228649081,-1479.66271003,0.00010984,2]
[327559133,1716228649090,-1479.66271003,0.00010984,2]
[327559134,1716228649100,-1479.66271003,0.00010984,2]
[327559135,1716228649109,-1479.66271003,0.00010984,2]
[327559136,1716228649118,-1479.66271003,0.00010984,2]
[327559137,1716228649127,-1479.66271003,0.00010984,2]
[327559138,1716228649137,-1479.66271003,0.00010984,2]
[327559139,1716228649147,-1479.66271003,0.00010984,2]
[327559140,1716228649160,-1479.66271003,0.00010984,2]
[327559141,1716228649171,-2242.223304,0.00012228,2]
[327559142,1716228649181,-2242.223304,0.0001299,2]
[327559143,1716228649190,-230520.89075891,0.000215,5]
[327559144,1716228649204,-650.96828781,0.000215,5]
[327559145,1716228649215,-44008.82,0.000215,5]
[327559146,1716228649226,-1765.648,0.000215,5]
[327559147,1716228649359,723.310865,0.00010222,2]
[327559148,1716228650404,-314.37304775,0.00010984,2]
[327559149,1716228650418,-854.88015695,0.00010984,2]
[327559150,1716228650430,-310.40950533,0.00010984,2]
[327559151,1716228650440,-1479.66271003,0.00010984,2]
[327559152,1716228650451,-1479.66271003,0.00010984,2]
[327559153,1716228650460,-1479.66271003,0.00010984,2]
[327559154,1716228650470,-1479.66271003,0.00010984,2]
[327559155,1716228650480,-1479.66271003,0.00010984,2]
[327559156,1716228650490,-1479.66271003,0.00010984,2]
[327559157,1716228650499,-1479.66271003,0.00010984,2]
[327559158,1716228650508,-1479.66271003,0.00010984,2]
[327559159,1716228650518,-2242.223304,0.00012999,2]
[327559160,1716228650527,-2242.223304,0.00013,2]
[327559161,1716228650536,-2242.223304,0.00013,2]
[327559162,1716228650546,-1245.32000866,0.00013786,2]
[327559163,1716228650558,-2242.223304,0.0001958,2]
[327559164,1716228650567,-2242.223304,0.0002145,2]
[327559165,1716228650578,-9609.3205153,0.000215,5]
[327559166,1716228650722,-261.88921696,0.00010984,2]
[327559167,1716228650733,-1217.77349307,0.00010984,2]
[327559168,1716228650743,-5635.82670693,0.000215,5]
[327559169,1716228650754,-1369.24999997,0.000215,5]
[327559172,1716228903632,-2000.83899828,0.00010982,2]
[327559173,1716228903655,-430.01455209,0.00010983,2]
[327559174,1716228903679,-155.28825132,0.00010983,2]
[327559176,1716228916021,-155.0,0.00012226,2]
[327559177,1716228916044,-3845.0,0.00012226,2]
[327559178,1716228930715,-394.84567179,0.00012225,2]
[327559179,1716228930741,-3605.15432821,0.00012226,2]
[327559180,1716229286214,665.02362507,0.00011,2]
[327559509,1716229832584,-525.90822352,0.00012125,2]
[327559511,1716229832594,-265.34000033,0.00012126,2]
[327559513,1716229832612,-104.69279967,0.00012126,2]
[327559515,1716229832622,-378.20844102,0.00012221,2]
[327559517,1716229832631,-488.01922742,0.00012221,2]
[327559519,1716229832641,-3279.04154518,0.00012222,2]
[327559520,1716229832653,-282.49599103,0.00012222,2]
[327559521,1716229832665,-326.75309456,0.00012222,2]
[327559522,1716229832675,-313.92509782,0.00012222,2]
[327559523,1716229832685,-1380.16157324,0.00012222,2]
[327559524,1716229832694,-155.0,0.00012222,2]
[327559525,1716229832704,-267.82545389,0.00012222,2]
[327559526,1716229832714,-155.23820873,0.00012222,2]
[327559527,1716229832724,-155.0,0.00012222,2]
[327559528,1716229832733,-156.34895342,0.00012222,2]
[327559529,1716229832742,-890.90790075,0.00012222,2]
[327559530,1716229832752,-161.35639647,0.00012222,2]
[327559531,1716229832762,-194.52498407,0.00012222,2]
[327559532,1716229832772,-2009.40805656,0.00012223,2]
[327559533,1716229832933,-17613.70636717,0.00012223,2]
[327559534,1716229832944,-217.39565287,0.00012224,2]
[327559535,1716229832954,-788.18220101,0.00012224,2]
[327559536,1716229832964,-177.5004176,0.00012224,2]
[327559537,1716229832973,-453.62819363,0.00012224,2]
[327559538,1716229832982,-155.38283062,0.00012224,2]
[327559539,1716229832991,-2284.43823994,0.00012224,2]
[327559540,1716229833001,-195.76544594,0.00012224,2]
[327559541,1716229833010,-1000.0,0.00012224,2]
[327559542,1716229833022,-327.24416632,0.00012224,2]
[327559543,1716229833031,-306.15892917,0.00012224,2]
[327559544,1716229833040,-155.0,0.00012224,2]
[327559545,1716229833050,-523.16611257,0.00012224,2]
[327559546,1716229833059,-1008.66595775,0.00012225,2]
[327559547,1716229833068,-782.13638794,0.00012225,2]
[327559548,1716229833078,-64570.15298537,0.00012226,2]
[327559549,1716229833087,-298.78407833,0.00012226,2]
[327559550,1716229833097,-8397.39625817,0.000124,2]
[327559551,1716229833107,-6949.31,0.000124,2]
[327559552,1716229833116,-150.99,0.000124,2]
[327559553,1716229833124,-999.99,0.000124,2]
[327559554,1716229833134,-499.99,0.000124,2]
[327559555,1716229833142,-150.99,0.000124,2]
[327559556,1716229833151,-6761.59,0.000124,2]
[327559557,1716229833160,-683.91564789,0.00012998,2]
[327559558,1716229833169,-245.46916265,0.00012998,2]
[327559559,1716229833179,-260.61531392,0.00012998,2]
[327559560,1716229833188,-150.99,0.00012998,2]
[327559561,1716229833197,-457.74988423,0.00013,2]
[327559562,1716229833207,-155.72821225,0.00013,2]
[327559563,1716229833217,-933.39456361,0.00013972,2]
[327559564,1716229833226,-160.96,0.00013973,2]
[327559565,1716229833235,-150.86,0.00013973,2]
[327559566,1716229833244,-271.06,0.00014879,2]
[327559567,1716229833254,-391.37863518,0.00015,2]
[327559568,1716229833264,-618.8768531,0.00015,2]
[327559569,1716229833281,-2631.74330573,0.00015,2]
[327559570,1716229833390,-494.64275301,0.00015,2]
[327559571,1716229833400,-3874.99308682,0.00015,2]
[327559572,1716229833411,-450.0,0.00015,2]
[327559573,1716229833423,-1050.0,0.00015,2]
[327559574,1716229833434,-3376.00691318,0.00015,2]
[327559575,1716229833443,-1014.0,0.00015,2]
[327559576,1716229833453,-1500.0,0.00016743,2]
[327559577,1716229833463,-1000.0,0.00016756,2]
[327559578,1716229833473,-830.46366617,0.00016807,2]
[327559579,1716229833482,-500.0,0.00016812,2]
[327559580,1716229833491,-250.0,0.00016825,2]
[327559581,1716229833501,-1237.86,0.00016854,2]
[327559582,1716229833511,-500.0,0.00016862,2]
[327559583,1716229833695,-250.0,0.00016868,2]
[327559584,1716229833705,-226.64,0.00016869,2]
[327559585,1716229833715,-200.0,0.00016871,2]
[327559586,1716229833725,-164.02,0.00016883,2]
[327559587,1716229833735,-2751.0,0.00016885,2]
[327559588,1716229833744,-23900.0,0.000169,2]
[327559589,1716229833754,-728.13,0.00016907,2]
[327559590,1716229833764,-1985.89,0.00016938,2]
[327559591,1716229833780,-380.82,0.00016965,2]
[327559592,1716229833797,-164.02,0.00017103,2]
[327559593,1716229833807,-271.06,0.00017143,2]
[327559594,1716229833816,-167.0,0.00017312,2]
[327559595,1716229833825,-164.02,0.00017323,2]
[327559596,1716229833834,-164.02,0.00017543,2]
[327559597,1716229833843,-164.02,0.00017763,2]
[327559598,1716229833855,-158.43327398,0.00018,2]
[327559599,1716229833866,-300.0,0.00018216,2]
[327559600,1716229833877,-167.0,0.00018265,2]
[327559601,1716229833888,-289.0,0.00018307,2]
[327559602,1716229833901,-11610.895,0.00018307,2]
[327559603,1716229833910,-1400.0,0.00018307,2]
[327559604,1716229833920,-1283.0,0.00018307,2]
[327559605,1716229833929,-1060.0,0.00018307,2]
[327559606,1716229833941,-167.76,0.0001859,2]
[327559607,1716229833951,-1363.5854,0.00018836,2]
[327559608,1716229833960,-1000.0,0.00018851,2]
[327559609,1716229833970,-958.9777,0.00018876,2]
[327559610,1716229833980,-1006.5144,0.00018876,2]
[327559611,1716229833990,-1406.085,0.00018891,2]
[327559612,1716229833999,-2892.27,0.00018906,2]
[327559613,1716229834009,-2892.27,0.00018911,2]
[327559614,1716229834021,-2892.27,0.00018916,2]
[327559615,1716229834031,-2892.27,0.00018921,2]
[327559616,1716229834041,-2892.27,0.00018926,2]
[327559617,1716229834051,-2892.27,0.00018931,2]
[327559618,1716229834060,-2892.27,0.00018936,2]
[327559619,1716229834070,-2892.27,0.00018941,2]
[327559620,1716229834079,-2892.27,0.00018946,2]
[327559621,1716229834091,-1219.08,0.00018949,2]
[327559622,1716229834100,-2892.27,0.00018951,2]
[327559623,1716229834109,-2892.27,0.00018956,2]
[327559624,1716229834120,-2892.27,0.00018961,2]
[327559625,1716229834130,-2892.27,0.00018966,2]
[327559626,1716229834140,-2892.27,0.00018971,2]
[327559627,1716229834150,-2892.27,0.00018976,2]
[327559628,1716229834160,-2892.27,0.00018981,2]
[327559629,1716229834171,-2892.27,0.00018986,2]
[327559630,1716229834180,-2892.27,0.00018991,2]
[327559631,1716229834190,-2892.27,0.00018996,2]
[327559632,1716229834199,-2892.27,0.00019001,2]
[327559633,1716229834208,-150.0,0.00019147,2]
[327559634,1716229834217,-150.0,0.00019172,2]
[327559635,1716229834227,-167.0,0.00019217,2]
[327559636,1716229834236,-150.0,0.00019272,2]
[327559637,1716229834247,-167.0,0.00019293,2]
[327559638,1716229834257,-271.06,0.00019407,2]
[327559639,1716229834267,-150.0,0.00019447,2]
[327559640,1716229834278,-472.25625666,0.000195,2]
[327559641,1716229834287,-7953.2508,0.000195,2]
[327559642,1716229834296,-1000.0,0.000195,2]
[327559643,1716229834305,-100000.0,0.000195,2]
[327559644,1716229834314,-150.0,0.00019518,2]
[327559645,1716229834323,-300.0,0.00019586,2]
[327559646,1716229834332,-19615.65373925,0.000196,2]
[327559647,1716229834341,-1985.89,0.00019678,2]
[327559648,1716229834350,-830.46366615,0.00019691,2]
[327559649,1716229834360,-150.0,0.0001983,2]
[327559650,1716229834369,-1934.7609,0.000199,2]
[327559651,1716229834378,-150.0,0.00019921,2]
[327559652,1716229834387,-627.77142105,0.0002,2]
[327559653,1716229834396,-6238.00785367,0.0002,2]
[327559654,1716229834405,-546.89106013,0.0002,2]
[327559655,1716229834414,-1773.05966905,0.0002,2]
[327559656,1716229834423,-155.0,0.0002,2]
[327559657,1716229834433,-862.07894367,0.0002,2]
[327559658,1716229834442,-1262.82225324,0.0002,2]
[327559659,1716229834452,-155.0,0.0002,2]
[327559660,1716229834461,-5184.68610729,0.0002,2]
[327559661,1716229834471,-167.0,0.0002017,2]
[327559662,1716229834480,-150.0,0.00020285,2]
[327559663,1716229834489,-150.0,0.00020402,2]
[327559664,1716229834498,-321.50938792,0.00020486,2]
[327559665,1716229834508,-150.0,0.000205,2]
[327559666,1716229834517,-150.0,0.00020515,2]
[327559667,1716229834533,-86951.21630135,0.00020547,2]
[327559668,1716229834543,-415.49,0.00020586,2]
[327559669,1716229834552,-500.0,0.000209,2]
[327559670,1716229834561,-1000.0,0.00020945,2]
[327559671,1716229834571,-717.73732659,0.00021,2]
[327559672,1716229834585,-750.0,0.00021,2]
[327559673,1716229834595,-750.0,0.00021,2]
[327559674,1716229834604,-150.0,0.00021,2]
[327559675,1716229834614,-608.30433365,0.00021006,2]
[327559676,1716229834626,-608.30433365,0.0002103,2]
[327559677,1716229834635,-155.16654335,0.00021051,2]
[327559678,1716229834645,-300.82172281,0.00021095,2]
[327559679,1716229834655,-151.70197259,0.00021153,2]
[327559680,1716229834668,-1565.2946698,0.00021159,2]
[327559681,1716229834678,-300.82172281,0.00021172,2]
[327559682,1716229834689,-200.47192505,0.00021175,2]
[327559683,1716229834699,-155.16654335,0.00021179,2]
[327559684,1716229834709,-413.4673435,0.00021185,2]
[327559685,1716229834720,-153.02819882,0.00021237,2]
[327559686,1716229834730,-1338.34818995,0.00021256,2]
[327559687,1716229834740,-151.70197259,0.00021267,2]
[327559688,1716229834750,-1400.0,0.00021307,2]
[327559689,1716229834759,-1283.0,0.00021307,2]
[327559690,1716229834772,-1000.0,0.00021328,2]
[327559691,1716229834781,-500.0,0.00021328,2]
[327559692,1716229834790,-153.93988001,0.00021328,2]
[327559693,1716229834799,-150.0,0.0002133,2]
[327559694,1716229834808,-151.18543486,0.00021373,2]
[327559695,1716229834817,-1338.34818995,0.00021386,2]
[327559696,1716229834826,-413.4673435,0.00021393,2]
[327559697,1716229834837,-343.0,0.000214,2]
[327559698,1716229834846,-486.0,0.000214,4]
[327559699,1716229834856,-578.0,0.000214,4]
[327559700,1716229834866,-221.47926676,0.000214,2]
[327559701,1716229834876,-413.4673435,0.00021401,2]
[327559702,1716229834885,-1338.34818995,0.00021425,2]
[327559703,1716229834895,-608.30433365,0.00021457,2]
[327559704,1716229834905,-151.29039193,0.00021495,2]
[327559705,1716229834914,-159.00349331,0.00021498,2]
[327559706,1716229834924,-14207.8822637,0.00021499,2]
[327559707,1716229834934,-2812.7576114,0.00021499,2]
[327559708,1716229834943,-1073.3943,0.00021499,2]
[327559709,1716229834953,-3141.73278364,0.00021499,2]
[327559710,1716229834962,-177844.72850113,0.000215,5]
[327559711,1716229834975,-1677.415985,0.000215,5]
[327559712,1716229834986,-621.77146932,0.000215,5]
[327559713,1716229834998,-883.97785601,0.000215,5]
[327559714,1716229835009,-450.25,0.000215,5]
[327559715,1716229835023,-537.59293945,0.000215,5]
[327559716,1716229835035,-1479.23907105,0.000215,5]
[327559721,1716229839103,-1497.57810814,0.000215,5]
[327559722,1716229839116,-66133.75518388,0.000215,5]
[327559723,1716229839127,-996.8089032,0.000215,5]
[327559725,1716229839137,-6838.63514357,0.000215,5]
[327559726,1716229839149,-14855.80305238,0.000215,5]
[327559727,1716229839367,-3305.56180405,0.000215,5]
[327559728,1716229839382,-18610.6332935,0.000215,2]
[327559729,1716229839394,-4152.62692832,0.000215,2]
[327559730,1716229839407,-1051.40066509,0.000215,2]
[327559731,1716229839419,-7308.2347879,0.000215,2]
[327559732,1716229839431,-3334.10012449,0.000215,2]
[327559733,1716229839443,-379.9357298,0.000215,2]
[327559734,1716229839456,-490.86710315,0.000215,2]
[327559735,1716229839683,-2144.530159,0.000215,2]
[327559736,1716229839694,-377.578241,0.000215,2]
[327559737,1716229839706,-115.75452413,0.000215,2]
[327559738,1716229839716,-1043.50527684,0.000215,2]
[327559739,1716229839726,-1039.06903091,0.000215,2]
[327559740,1716229839736,-445.2738073,0.000215,2]
[327559741,1716229839747,-500.0,0.000215,2]
[327559742,1716229839757,-35145.82277644,0.000215,2]
[327559743,1716229839767,-2000.0,0.000215,2]
[327559744,1716229839778,-200.0,0.000215,2]
[327559745,1716229839788,-2000.0,0.000215,2]
[327559746,1716229839799,-200.0,0.000215,2]
[327559747,1716229839809,-2000.0,0.000215,2]
[327559748,1716229839819,-200.0,0.000215,2]
[327559749,1716229839829,-41269.7681166,0.000215,2]
[327559750,1716229839838,-150.0,0.000215,3]
[327559751,1716229839848,-900.0,0.00021506,2]
[327559752,1716229839857,-600.0,0.00021506,2]
[327559753,1716229839868,-500.0,0.00021506,2]
[327559754,1716229839877,-608.30433365,0.00021515,2]
[327559755,1716229839887,-150.0,0.00021532,2]
[327559756,1716229839898,-150.0,0.00021532,2]
[327559757,1716229839908,-150.0,0.00021532,2]
[327559758,1716229839918,-869.61,0.00021545,2]
[327559759,1716229839929,-869.61,0.00021545,2]
[327559760,1716229839939,-1738.23,0.00021545,2]
[327559761,1716229839950,-869.61,0.00021545,2]
[327559762,1716229839960,-608.30433365,0.00021552,2]
[327559763,1716229839970,-151.18543486,0.00021606,2]
[327559765,1716229839980,-271.06,0.00021671,2]
[327559767,1716229839989,-2000.0,0.00021715,2]
[327559769,1716229839999,-200.0,0.00021715,2]
[327559771,1716229840010,-2000.0,0.00021715,2]
[327559773,1716229840020,-200.0,0.00021715,2]
[327559775,1716229840031,-200.0,0.00021715,2]
[327559777,1716229840042,-155.26226863,0.00021716,2]
[327559779,1716229840052,-155.26226863,0.00021717,2]
[327559781,1716229840063,-153.18821613,0.00021724,2]
[327559783,1716229840073,-1338.34818995,0.00021735,2]
[327559785,1716229840083,-300.82172281,0.0002177,2]
[327559787,1716229840094,-166.52876342,0.000218,2]
[327559789,1716229840105,-151.70197259,0.00021805,2]
[327559791,1716229840116,-608.30433365,0.00021811,2]
[327559793,1716229840126,-8230.3018717,0.00021818,2]
[327559795,1716229840136,-150.0,0.0002183,2]
[327559797,1716229840146,-150.0,0.00021845,2]
[327559799,1716229840156,-151.18543486,0.00021887,2]
[327559801,1716229840166,-155.16654335,0.00021896,2]
[327559803,1716229840176,-12993.28073755,0.000219,2]
[327559805,1716229840187,-1000.0,0.000219,2]
[327559807,1716229840196,-150.0,0.00021906,2]
[327559809,1716229840206,-988.51,0.00021918,2]
[327559811,1716229840215,-163.86,0.00021918,2]
[327559813,1716229840224,-1069.46,0.00021918,2]
[327559815,1716229840234,-200.6393933,0.00021918,7]
[327559817,1716229840244,-1842.84733006,0.00021932,2]
[327559819,1716229840253,-200.0,0.00021932,2]
[327559821,1716229840263,-200.0,0.00021932,2]
[327559823,1716229840273,-166.66666668,0.00021948,2]
[327559825,1716229840285,-200.0,0.00021983,2]
[327559827,1716229840296,-787.28734739,0.00022,2]
[327559829,1716229840306,-10599.43219035,0.00022,2]
[327559831,1716229840316,-280.05949681,0.00022,2]
[327559834,1716229840325,-150.0,0.00022,3]
[327559836,1716229840335,-170.18130382,0.00022009,2]
[327559837,1716229840350,-900.0,0.00022054,2]
[327559839,1716229840364,-600.0,0.00022054,2]
[327559840,1716229840387,-608.30433365,0.00022074,2]
[327559841,1716229840402,-155.26226863,0.00022145,2]
[327559842,1716229840413,-200.0,0.00022151,2]
[327559843,1716229840422,-200.0,0.00022151,2]
[327559844,1716229840432,-159.00349331,0.00022171,2]
[327559845,1716229840442,-321.50938792,0.00022187,2]
[327559846,1716229840452,-1338.34818995,0.0002219,2]
[327559847,1716229840462,-150.0,0.000222,2]
[327559848,1716229840472,-166.7986836,0.00022211,2]
[327559849,1716229840483,-2500.0,0.000223,2]
[327559850,1716229840492,-200.0,0.00022311,2]
[327559851,1716229840502,-1000.0,0.00022311,2]
[327559852,1716229840512,-500.0,0.00022311,2]
[327559853,1716229840522,-200.0,0.00022311,2]
[327559854,1716229840537,-608.30433365,0.00022313,2]
[327559855,1716229840547,-200.0,0.00022373,2]
[327559857,1716229840556,-153.02819882,0.00022407,2]
[327559859,1716229840566,-155.26226863,0.0002241,2]
[327559861,1716229840577,-1985.89,0.00022418,2]
[327559863,1716229840589,-150.0,0.00022457,2]
[327559865,1716229840599,-150.0,0.00022474,2]
[327559867,1716229840608,-2241.534403,0.000225,3]
[327559869,1716229840618,-150.0,0.000225,3]
[327559871,1716229840630,-608.30433365,0.00022508,2]
[327559873,1716229840640,-166.66666667,0.00022512,2]
[327559875,1716229840650,-150.0,0.00022521,2]
[327559877,1716229840660,-830.46366615,0.00022575,2]
[327559879,1716229840671,-281.84379049,0.00022601,2]
[327559881,1716229840682,-156.11123001,0.00022601,2]
[327559883,1716229840692,-155.0,0.00022601,2]
[327559885,1716229840702,-500.0,0.00022602,2]
[327559887,1716229840712,-900.0,0.00022602,2]
[327559888,1716229840722,-600.0,0.00022602,2]
[327559889,1716229840731,-153.87433227,0.00022615,2]
[327559891,1716229840741,-150.72,0.00022628,2]
[327559893,1716229840751,-155.26226863,0.00022645,2]
[327559894,1716229840760,-150.0,0.00022675,2]
[327559895,1716229840770,-413.4673435,0.00022689,2]
[327559896,1716229840782,-413.4673435,0.00022755,2]
[327559897,1716229840791,-153.02819882,0.00022774,2]
[327559898,1716229840800,-155.16654335,0.00022794,2]
[327559899,1716229840810,-1500.0,0.000228,2]
[327559900,1716229840819,-167.9037705,0.0002282,2]
[327559901,1716229840829,-153.18821613,0.00022823,2]
[327559902,1716229840840,-153.18821613,0.0002283,2]
[327559903,1716229840850,-155.26226863,0.00022838,2]
[327559905,1716229840860,-153.87433227,0.00022855,2]
[327559907,1716229840869,-608.30433365,0.00022859,2]
[327559909,1716229840879,-150.0,0.000229,2]
[327559910,1716229840888,-300.82172281,0.00022929,2]
[327559912,1716229840897,-151.18543486,0.00022935,2]
[327559914,1716229840907,-150.0,0.00022968,2]
[327559916,1716229840917,-155.0,0.00023,2]
[327559918,1716229840927,-5000.0,0.00023,2]
[327559920,1716229840936,-1000.0,0.00023,5]
[327559922,1716229840946,-1032.8209973,0.00023,2]
[327559925,1716229840955,-800.0,0.00023,2]
[327559927,1716229840966,-800.0,0.00023,2]
[327559929,1716229840975,-1000.0,0.00023,2]
[327559930,1716229840984,-150.0,0.00023,3]
[327559932,1716229840993,-150.0,0.00023008,2]
[327559934,1716229841003,-155.26226863,0.00023028,2]
[327559936,1716229841014,-1000.0,0.0002304,2]
[327559939,1716229841024,-150.0,0.0002308,2]
[327559940,1716229841036,-151.18543486,0.00023086,2]
[327559942,1716229841046,-153.93988001,0.00023097,2]
[327559945,1716229841056,-151.18543486,0.0002311,2]
[327559947,1716229841066,-900.0,0.0002315,2]
[327559949,1716229841076,-600.0,0.0002315,2]
[327559951,1716229841086,-151.70197259,0.00023151,2]
[327559953,1716229841096,-150.0,0.00023152,2]
[327559955,1716229841105,-413.4673435,0.00023192,2]
[327559957,1716229841115,-1338.34818995,0.00023231,2]
[327559959,1716229841125,-155.26226863,0.00023232,2]
[327559961,1716229841135,-153.87433227,0.00023261,2]
[327559963,1716229841144,-300.82172281,0.00023269,2]
[327559965,1716229841154,-155.16654335,0.00023272,2]
[327559967,1716229841163,-214.0,0.00023274,2]
[327559969,1716229841172,-200.0,0.00023293,2]
[327559971,1716229841181,-1000.0,0.00023293,2]
[327559973,1716229841191,-200.0,0.00023293,2]
[327559975,1716229841201,-500.0,0.00023293,2]
[327559977,1716229841210,-1500.0,0.000233,2]
[327559979,1716229841221,-608.30433365,0.00023317,2]
[327559981,1716229841231,-155.16654335,0.00023335,2]
[327559982,1716229841241,-4094.90299694,0.00023335,28]
[327559983,1716229841250,-300.82172281,0.00023336,2]
[327559984,1716229841260,-413.4673435,0.00023347,2]
[327559985,1716229841270,-151.70197259,0.00023362,2]
[327559986,1716229841281,-608.30433365,0.00023409,2]
[327559987,1716229841290,-151.29039193,0.00023441,2]
[327559988,1716229841299,-150.0,0.00023443,2]
[327559989,1716229841309,-1739.22,0.00023459,2]
[327559990,1716229841318,-204.21,0.00023462,2]
[327559991,1716229841327,-840.95,0.00023462,2]
[327559992,1716229841337,-420.73,0.00023462,2]
[327559993,1716229841347,-3748.9167403,0.0002348,2]
[327559994,1716229841356,-155.16654335,0.00023493,2]
[327559995,1716229841366,-151.70197259,0.00023494,2]
[327559996,1716229841376,-10000.0,0.00023496,2]
[327559997,1716229841386,-150.0,0.00023497,2]
[327559998,1716229841395,-687.0,0.000235,2]
[327559999,1716229841405,-150.0,0.000235,3]
[327560000,1716229841415,-150.0,0.00023502,2]
[327560001,1716229841425,-151.70197259,0.00023529,2]
[327560002,1716229841435,-300.82172281,0.00023532,2]
[327560003,1716229841445,-300.82172281,0.00023533,2]
[327560004,1716229841455,-151.29039193,0.00023579,2]
[327560005,1716229841464,-1000.0,0.000236,3]
[327560006,1716229841474,-1000.0,0.000236,3]
[327560007,1716229841484,-822.0,0.000236,3]
[327560008,1716229841493,-1000.0,0.000236,3]
[327560009,1716229841503,-7000.77791852,0.000236,10]